bitfinex-derivatives/quotes_BTCF0:USTF0_20250722
["timestamp","ask_amount","ask_price","bid_price","bid_amount"]
[1753152149517,0.3387893,117580.0,117570.0,0.06375343]
[1753152149718,1.68239941,117580.0,117570.0,0.06375343]
[1753152150916,1.68239941,117580.0,117570.0,0.06475343]
[1753152151115,1.68287941,117580.0,117570.0,0.14007343]
[1753152151318,1.68287941,117580.0,117570.0,0.13594]
[1753152151720,1.68287941,117580.0,117570.0,0.09417]
[1753152152923,1.68287941,117580.0,117570.0,0.05461]
[1753152153124,1.69119839,117580.0,117570.0,0.02753]
[1753152153425,1.68287941,117580.0,117570.0,0.02753]
[1753152154424,1.68287941,117580.0,117570.0,0.01885]
[1753152156519,1.68287941,117580.0,117570.0,0.001]
[1753152156826,0.3388185,117560.0,117550.0,0.95964116]
[1753152157026,1.09594861,117560.0,117550.0,0.73240116]
[1753152157224,1.09594861,117560.0,117550.0,0.55398]
[1753152157425,1.09594861,117560.0,117550.0,0.724033]
[1753152157925,1.09594861,117560.0,117550.0,0.73562625]
[1753152158125,1.09594861,117560.0,117550.0,0.730033]
[1753152158318,1.45674861,117560.0,117550.0,0.55998]
[1753152158521,1.45674861,117560.0,117550.0,0.7300331]
[1753152158716,1.45674861,117560.0,117550.0,0.6709931]
[1753152159326,1.45674861,117560.0,117550.0,0.3492231]
[1753152159528,1.45674861,117560.0,117550.0,0.3096631]
[1753152160227,1.45674861,117560.0,117550.0,0.2296631]
[1753152160827,1.45674861,117560.0,117550.0,0.12804704]
[1753152161527,2.04378861,117560.0,117550.0,0.12804704]
[1753152161723,2.04378861,117560.0,117550.0,0.10096704]
[1753152161919,2.33011872,117560.0,117550.0,0.10096704]
[1753152162125,2.33011872,117560.0,117550.0,0.09228704]
[1753152162517,2.04378861,117560.0,117550.0,0.09228704]
[1753152163821,2.04378861,117560.0,117550.0,0.02385]
[1753152163822,2.33011872,117560.0,117550.0,0.02385]
[1753152164326,2.22011872,117560.0,117550.0,0.02385]
[1753152164527,2.34011872,117560.0,117550.0,0.006]
[1753152165123,2.05378861,117560.0,117550.0,0.032]
[1753152165327,2.05490861,117560.0,117550.0,0.032]
[1753152167929,2.06490861,117560.0,117550.0,0.032]
[1753152168125,2.35123872,117560.0,117550.0,0.032]
[1753152170224,2.35123872,117560.0,117550.0,0.026]
[1753152170426,0.06663,117530.0,117460.0,0.35182532]
[1753152170725,0.3608,117440.0,117390.0,0.30593506]
[1753152170924,0.1702701,117400.0,117390.0,0.10688981]
[1753152171118,0.1702846,117390.0,117380.0,0.10553]
[1753152171324,0.2902846,117390.0,117380.0,0.7011491]
[1753152171526,0.2902846,117390.0,117380.0,0.82409]
[1753152171732,0.62736477,117390.0,117380.0,0.17005]
[1753152171929,0.6493812,117390.0,117380.0,0.82469]
[1753152172124,0.6493812,117390.0,117380.0,0.17005]
[1753152172330,0.31230103,117390.0,117380.0,1.0120191]
[1753152172522,0.14201643,117390.0,117380.0,1.7058191]
[1753152172728,0.3512535,117410.0,117400.0,0.3575481]
[1753152172924,0.2002536,117410.0,117400.0,1.56432]
[1753152173123,0.53733377,117410.0,117400.0,0.90888]
[1753152173427,0.8559336,117410.0,117400.0,0.90888]
[1753152173632,0.8559336,117410.0,117400.0,1.24888]
[1753152173828,0.2002536,117410.0,117400.0,1.0791481]
[1753152174029,0.8563736,117410.0,117400.0,1.0058581]
[1753152174233,0.8593736,117410.0,117400.0,1.0068581]
[1753152174526,0.8293736,117410.0,117400.0,1.0068581]
[1753152174730,0.8293736,117410.0,117400.0,1.66393827]
[1753152174931,0.8293736,117410.0,117400.0,1.34393827]
[1753152175132,0.1732536,117410.0,117400.0,1.0068581]
[1753152175333,0.9210536,117410.0,117400.0,1.0068581]
[1753152175530,0.2632536,117410.0,117400.0,0.90988]
[1753152175725,0.2632536,117410.0,117400.0,1.080148]
[1753152175726,0.9207336,117410.0,117400.0,1.080148]
[1753152175933,0.98157059,117410.0,117400.0,1.080148]
[1753152176127,0.98157059,117410.0,117400.0,0.90988]
[1753152176333,0.2632536,117410.0,117400.0,0.90988]
[1753152176536,0.2632536,117410.0,117400.0,1.0801478]
[1753152176736,0.2632536,117410.0,117400.0,0.90988]
[1753152177031,0.32409059,117410.0,117400.0,0.90988]
[1753152177230,0.9238136,117410.0,117400.0,0.18828]
[1753152177425,0.9234136,117410.0,117400.0,0.18828]
[1753152177631,0.9244136,117410.0,117400.0,0.18828]
[1753152178134,1.32233076,117410.0,117400.0,0.11499]
[1753152178339,1.26149377,117410.0,117400.0,0.09776]
[1753152178731,1.26149377,117410.0,117400.0,0.11499]
[1753152179135,0.9244136,117410.0,117400.0,0.11499]
[1753152179337,1.26149377,117410.0,117400.0,0.11499]
[1753152179636,1.32233076,117410.0,117400.0,0.11499]
[1753152180032,0.9244136,117410.0,117400.0,0.11499]
[1753152180233,1.26149377,117410.0,117400.0,0.11499]
[1753152181341,1.26149377,117410.0,117400.0,0.09776]
[1753152181634,0.1702825,117390.0,117380.0,0.3608]
[1753152181838,0.9391625,117390.0,117380.0,0.54808]
[1753152182230,0.99889051,117390.0,117380.0,0.18728]
[1753152182437,1.69677068,117390.0,117380.0,0.18728]
[1753152182635,1.33597068,117390.0,117380.0,0.54808]
[1753152182935,0.99889051,117390.0,117380.0,0.18928]
[1753152183137,0.99889051,117390.0,117380.0,0.55008]
[1753152183328,0.99889051,117390.0,117380.0,0.18928]
[1753152183529,0.99889051,117390.0,117380.0,0.55108]
[1753152183730,0.2802825,117390.0,117380.0,0.360577]
[1753152183933,0.9383225,117390.0,117380.0,0.55108]
[1753152184333,0.9383225,117390.0,117380.0,0.721377]
[1753152184532,0.99800934,117390.0,117380.0,0.55108]
[1753152184737,1.02868632,117390.0,117380.0,0.721377]
[1753152186242,0.96899948,117390.0,117380.0,0.721377]
[1753152187643,0.96687948,117390.0,117380.0,0.721377]
[1753152187832,1.02656632,117390.0,117380.0,0.721377]
[1753152188233,0.37064632,117390.0,117380.0,0.721377]
[1753152188434,0.31095948,117390.0,117380.0,0.721377]
[1753152188839,0.96679948,117390.0,117380.0,0.721377]
[1753152189038,1.02648249,117390.0,117380.0,0.721377]
[1753152189340,1.02628249,117390.0,117380.0,0.721377]
[1753152190943,1.02628249,117390.0,117380.0,0.55108]
[1753152191450,1.02526877,117390.0,117380.0,0.55108]
[1753152192450,0.96551948,117390.0,117380.0,0.55108]
[1753152192852,1.30259965,117390.0,117380.0,0.55108]
[1753152194153,1.04827948,117390.0,117380.0,0.55108]
[1753152194346,1.38535965,117390.0,117380.0,0.55108]
[1753152195047,1.12432571,117390.0,117380.0,0.55108]
[1753152195352,1.12432571,117390.0,117380.0,0.54772453]
[1753152195555,1.46140588,117390.0,117380.0,0.54772453]
[1753152195956,1.46140588,117390.0,117380.0,0.71802013]
[1753152196254,1.12432571,117390.0,117380.0,0.64899692]
[1753152196455,0.57490571,117390.0,117380.0,0.70238692]
[1753152196750,1.22682571,117390.0,117380.0,0.70238692]
[1753152198359,1.19670948,117390.0,117380.0,0.63521597]
[1753152199657,1.30317421,117390.0,117380.0,0.63521597]
[1753152200258,1.30317421,117390.0,117380.0,0.64437729]
[1753152200553,1.19546948,117390.0,117380.0,0.7354056]
[1753152200958,1.19546948,117390.0,117380.0,0.4154056]
[1753152201259,1.30161184,117390.0,117380.0,0.4154056]
[1753152202054,1.30361184,117390.0,117380.0,0.4154056]
[1753152203062,1.30861184,117390.0,117380.0,0.4164056]
[1753152203456,0.65793184,117390.0,117380.0,0.4164056]
[1753152203761,1.30725184,117390.0,117380.0,0.4164056]
[1753152204061,1.30681184,117390.0,117380.0,0.4164056]
[1753152204264,1.30681184,117390.0,117380.0,0.32437465]
[1753152204462,1.30681184,117390.0,117380.0,0.36703465]
[1753152205265,1.30681184,117390.0,117380.0,0.68703465]
[1753152205466,1.30681184,117390.0,117380.0,0.36703465]
[1753152205657,0.48764934,117390.0,117380.0,0.68703465]
[1753152205859,0.28892934,117390.0,117380.0,1.38491482]
[1753152206058,0.007,117390.0,117380.0,2.45297082]
[1753152206460,0.007,117390.0,117380.0,2.52054962]
[1753152207264,0.007,117390.0,117380.0,2.27054962]
[1753152210963,0.007,117390.0,117380.0,2.27074483]
[1753152212164,0.007,117390.0,117380.0,2.56714483]
[1753152213768,0.007,117390.0,117380.0,2.61310195]
[1753152217869,0.007,117390.0,117380.0,2.56714483]
[1753152218072,0.02459239,117390.0,117380.0,2.56714483]
[1753152219367,0.02459239,117390.0,117380.0,2.5174029]
[1753152219573,0.10075,117410.0,117400.0,0.2663167]
[1753152219763,0.2217499,117410.0,117400.0,2.05248494]
[1753152220070,0.2869099,117410.0,117400.0,2.05248494]
[1753152220271,0.3684199,117410.0,117400.0,2.05248494]
[1753152220673,0.3754199,117410.0,117400.0,2.05348494]
[1753152220871,0.3794199,117410.0,117400.0,2.05348494]
[1753152221762,0.3784199,117410.0,117400.0,2.05348494]
[1753152222570,0.3744199,117410.0,117400.0,2.05248494]
[1753152224876,0.3744199,117410.0,117400.0,1.41156494]
[1753152225174,0.3744199,117410.0,117400.0,2.05016494]
[1753152227180,0.5446721,117410.0,117400.0,1.0511467]
[1753152227478,0.5446721,117410.0,117400.0,1.7419467]
[1753152227679,0.3744199,117410.0,117400.0,1.7419467]
[1753152229372,0.5446721,117410.0,117400.0,1.77254684]
[1753152229577,0.3744199,117410.0,117400.0,2.05988508]
[1753152230579,0.3744199,117410.0,117400.0,1.44254684]
[1753152230778,0.3744199,117410.0,117400.0,1.82254684]
[1753152230980,0.5446721,117410.0,117400.0,2.09988508]
[1753152231174,0.5446721,117410.0,117400.0,1.81254684]
[1753152231380,0.5446721,117410.0,117400.0,2.09988508]
[1753152231778,0.3744199,117410.0,117400.0,2.09988508]
[1753152233382,0.5446721,117410.0,117400.0,2.09988508]
[1753152234478,0.3744199,117410.0,117400.0,2.09988508]
[1753152234678,0.5446721,117410.0,117400.0,2.09988508]
[1753152234881,0.3744199,117410.0,117400.0,2.09988508]
[1753152235883,0.3744199,117410.0,117400.0,2.11524206]
[1753152236284,0.5446721,117410.0,117400.0,2.11524206]
[1753152238984,0.5446721,117410.0,117400.0,1.82790382]
[1753152239187,0.5446721,117410.0,117400.0,2.11524206]
[1753152239381,0.5446721,117410.0,117400.0,1.45790382]
[1753152239580,0.5446721,117410.0,117400.0,1.77790382]
[1753152240087,0.5446721,117410.0,117400.0,2.06524206]
[1753152240486,0.5446721,117410.0,117400.0,1.77790382]
[1753152240686,0.5446721,117410.0,117400.0,2.06524206]
[1753152240986,0.5446721,117410.0,117400.0,1.77790382]
[1753152242988,0.5446721,117410.0,117400.0,1.60763712]
[1753152243190,0.83201034,117410.0,117400.0,1.45790322]
[1753152243387,0.83101044,117410.0,117400.0,1.83790322]
[1753152243588,0.83201034,117410.0,117400.0,1.83790322]
[1753152244688,0.5446721,117410.0,117400.0,1.83790322]
[1753152245796,0.5446721,117410.0,117400.0,1.64472712]
[1753152246295,0.5446721,117410.0,117400.0,1.66728712]
[1753152246601,0.83201034,117410.0,117400.0,1.66728712]
[1753152248304,0.83201034,117410.0,117400.0,1.66280712]
[1753152249204,0.83201034,117410.0,117400.0,1.83307342]
[1753152250101,0.83201034,117410.0,117400.0,1.8637353]
[1753152250304,0.5446721,117410.0,117400.0,1.8637353]
[1753152250507,0.83201034,117410.0,117400.0,1.8637353]
[1753152251201,0.83201034,117410.0,117400.0,1.81777818]
[1753152251400,0.5446721,117410.0,117400.0,1.81777818]
[1753152252300,0.83201034,117410.0,117400.0,1.81777818]
[1753152253208,0.5446721,117410.0,117400.0,1.81777818]
[1753152254807,0.5446721,117410.0,117400.0,1.7871163]
[1753152255008,0.83201034,117410.0,117400.0,0.98361]
[1753152255210,0.83201034,117410.0,117400.0,1.28338882]
[1753152255807,0.83201034,117410.0,117400.0,0.90338882]
[1753152256104,0.83201034,117410.0,117400.0,1.24338882]
[1753152256303,0.83201034,117410.0,117400.0,0.90338882]
[1753152256510,0.83201034,117410.0,117400.0,1.23338882]
[1753152256708,0.83101044,117410.0,117400.0,1.40365402]
[1753152256911,0.83201034,117410.0,117400.0,1.40365402]
[1753152258409,0.3744199,117410.0,117400.0,1.40365402]
[1753152258610,0.16111,117410.0,117400.0,2.06709056]
[1753152258812,0.1506299,117410.0,117400.0,2.06709056]
[1753152259012,0.1506299,117410.0,117400.0,1.77975232]
[1753152259213,0.2427499,117410.0,117400.0,2.06709056]
[1753152260110,0.4130006,117410.0,117400.0,2.07707472]
[1753152260413,0.4661306,117410.0,117400.0,2.07707472]
[1753152260813,0.82998884,117410.0,117400.0,1.61947128]
[1753152261410,0.82998884,117410.0,117400.0,1.60948712]
[1753152261713,0.82998884,117410.0,117400.0,1.59559134]
[1753152262303,0.82898894,117410.0,117400.0,1.59559134]
[1753152262508,0.82998884,117410.0,117400.0,1.59559134]
[1753152263313,0.82898894,117410.0,117400.0,1.59559134]
[1753152263514,0.82998884,117410.0,117400.0,1.59559134]
[1753152263713,0.82998884,117410.0,117400.0,1.78876654]
[1753152264310,0.82898894,117410.0,117400.0,1.78876654]
[1753152264513,0.82998884,117410.0,117400.0,1.78876661]
[1753152264911,0.5426506,117410.0,117400.0,1.61850141]
[1753152265110,0.82998884,117410.0,117400.0,1.78876661]
[1753152265311,0.5426506,117410.0,117400.0,1.78876661]
[1753152265713,0.5426506,117410.0,117400.0,1.77878232]
[1753152267510,0.5426506,117410.0,117400.0,1.60851712]
[1753152267812,0.82998884,117410.0,117400.0,1.60851712]
[1753152268208,1.19078884,117410.0,117400.0,0.53684712]
[1753152268513,1.19078884,117410.0,117400.0,0.40661958]
[1753152268915,1.19078884,117410.0,117400.0,0.07661958]
[1753152269114,1.64847908,117410.0,117400.0,0.03066246]
[1753152269509,1.36114084,117410.0,117400.0,0.03066246]
[1753152273618,1.61114084,117410.0,117400.0,0.03066246]
[1753152274014,1.61114084,117410.0,117400.0,0.05365163]
[1753152274216,1.36114084,117410.0,117400.0,0.05365163]
[1753152274821,1.64847908,117410.0,117400.0,0.05365163]
[1753152275611,0.2657351,117400.0,117390.0,0.04595712]
[1753152275806,0.3930495,117390.0,117380.0,0.14337819]
[1753152276011,0.81524774,117390.0,117380.0,0.26181297]
[1753152276212,0.81524774,117390.0,117380.0,0.21584107]
[1753152276414,0.81524774,117390.0,117380.0,0.19863521]
[1753152278415,0.81524774,117390.0,117380.0,0.00019521]
[1753152280217,1.17604774,117390.0,117380.0,0.00019521]
[1753152280417,1.43980774,117390.0,117380.0,0.02447521]
[1753152280613,0.81624774,117390.0,117380.0,0.19863521]
[1753152280810,1.43968774,117390.0,117380.0,0.24381521]
[1753152281213,1.43968774,117390.0,117380.0,0.11697521]
[1753152281408,1.44168774,117390.0,117380.0,0.10449521]
[1753152281817,1.44172774,117390.0,117380.0,0.10449521]
[1753152283723,1.44172774,117390.0,117380.0,0.02447521]
[1753152283917,1.44172774,117390.0,117380.0,0.00019521]
[1753152284122,1.80252774,117390.0,117380.0,0.00019521]
[1753152288927,1.17904774,117390.0,117380.0,0.00019521]
[1753152289129,1.80216774,117390.0,117380.0,0.00019521]
[1753152290927,0.3965042,117380.0,117370.0,0.20819951]
[1753152291126,1.17909244,117380.0,117370.0,0.20819951]
[1753152291326,1.17909244,117380.0,117370.0,0.19987]
[1753152291924,1.17909244,117380.0,117370.0,0.24956]
[1753152293134,1.17909244,117380.0,117370.0,0.24976299]
[1753152294227,1.17909244,117380.0,117370.0,0.58976299]
[1753152294432,1.80105244,117380.0,117370.0,0.77007169]
[1753152294827,1.5137142,117380.0,117370.0,0.77007169]
[1753152295026,1.80105244,117380.0,117370.0,0.77007169]
[1753152295325,1.44025244,117380.0,117370.0,0.77007169]
[1753152295832,1.44025244,117380.0,117370.0,0.42007169]
[1753152296333,1.44025244,117380.0,117370.0,0.37038169]
[1753152296832,1.44025244,117380.0,117370.0,0.73038169]
[1753152297132,1.44025244,117380.0,117370.0,0.42007169]
[1753152299628,1.43921244,117380.0,117370.0,0.77007169]
[1753152299823,0.81829244,117380.0,117370.0,0.77007169]
[1753152300029,1.43901244,117380.0,117370.0,0.42007169]
[1753152300229,0.33621,117380.0,117370.0,1.11087169]
[1753152300426,0.14032,117380.0,117370.0,1.39820993]
[1753152300633,0.11,117380.0,117370.0,1.44418183]
[1753152300936,0.3850162,117400.0,117390.0,0.4174097]
[1753152301127,0.5050162,117400.0,117390.0,0.7874097]
[1753152301327,0.5164763,117400.0,117390.0,0.7874097]
[1753152301524,0.3472099,117400.0,117390.0,0.7874097]
[1753152301724,0.34621,117400.0,117390.0,0.7874097]
[1753152302335,0.5174751,117400.0,117390.0,0.7874097]
[1753152302935,0.5164752,117400.0,117390.0,0.7874097]
[1753152303237,0.5174751,117400.0,117390.0,0.7874097]
[1753152303634,0.5164752,117400.0,117390.0,0.7874097]
[1753152304134,0.34621,117400.0,117390.0,1.1482097]
[1753152304441,0.4216653,117400.0,117390.0,1.1482097]
[1753152304832,0.19874,117400.0,117390.0,1.1482097]
[1753152305539,0.3690053,117400.0,117390.0,1.1482097]
[1753152305739,0.3700052,117400.0,117390.0,1.1788243]
[1753152306534,0.4226652,117400.0,117390.0,1.1788243]
[1753152309240,0.2523999,117400.0,117390.0,1.1788243]
[1753152309441,0.4226652,117400.0,117390.0,1.1788243]
[1753152310241,0.5050152,117400.0,117390.0,1.1788243]
[1753152311143,0.5174752,117400.0,117390.0,1.1788243]
[1753152311441,0.80481344,117400.0,117390.0,1.1788243]
[1753152313237,0.80481344,117400.0,117390.0,1.1482097]
[1753152313438,0.80481344,117400.0,117390.0,0.7782097]
[1753152313641,0.82926344,117400.0,117390.0,1.0358498]
[1753152313944,0.5419252,117400.0,117390.0,1.0358498]
[1753152314135,0.82926344,117400.0,117390.0,1.0358498]
[1753152314336,0.82926344,117400.0,117390.0,1.3966498]
[1753152314944,0.83126344,117400.0,117390.0,1.3966498]
[1753152315145,0.83426344,117400.0,117390.0,1.3966498]
[1753152315342,0.83426344,117400.0,117390.0,0.7782098]
[1753152315533,0.83426344,117400.0,117390.0,1.0354498]
[1753152316441,0.83426344,117400.0,117390.0,0.11494]
[1753152316742,0.4201598,117390.0,117380.0,0.8445546]
[1753152316931,0.82749804,117390.0,117380.0,0.03461]
[1753152317137,0.4211742,117380.0,117370.0,1.00212469]
[1753152317338,0.81851244,117380.0,117370.0,0.64132469]
[1753152317539,1.43695244,117380.0,117370.0,1.05623469]
[1753152317739,1.43695244,117380.0,117370.0,1.10210469]
[1753152318543,1.43695244,117380.0,117370.0,1.01366059]
[1753152319045,1.79775244,117380.0,117370.0,0.57952179]
[1753152319744,1.43695244,117380.0,117370.0,0.57952179]
[1753152320140,1.43695244,117380.0,117370.0,0.61013639]
[1753152320643,1.43695244,117380.0,117370.0,0.69366639]
[1753152321246,1.43695244,117380.0,117370.0,0.61013639]
[1753152321744,1.79775244,117380.0,117370.0,0.31373639]
[1753152322240,1.43695244,117380.0,117370.0,0.31373639]
[1753152322745,1.43695244,117380.0,117370.0,0.39726639]
[1753152322938,1.43695244,117380.0,117370.0,0.44313639]
[1753152325740,0.3369599,117380.0,117370.0,1.08393639]
[1753152326949,0.5072542,117380.0,117370.0,1.08393639]
[1753152327147,0.4254542,117380.0,117370.0,1.08393639]
[1753152328349,0.4254542,117380.0,117370.0,1.12984833]
[1753152328848,0.2551599,117380.0,117370.0,1.12984833]
[1753152329037,0.4254542,117380.0,117370.0,1.12984833]
[1753152330041,0.4254543,117380.0,117370.0,1.12984833]
[1753152330246,0.5072543,117380.0,117370.0,1.08393639]
[1753152330447,0.79459254,117380.0,117370.0,1.08393639]
[1753152330648,0.5311743,117380.0,117370.0,1.15332179]
[1753152330850,0.81851254,117380.0,117370.0,1.15332179]
[1753152331153,0.5311743,117380.0,117370.0,1.15332179]
[1753152331354,0.81851254,117380.0,117370.0,1.15332179]
[1753152332656,0.81851254,117380.0,117370.0,1.76800179]
[1753152334448,0.5311743,117380.0,117370.0,1.76800179]
[1753152334653,0.81851254,117380.0,117370.0,1.76800179]
[1753152335353,0.79459254,117380.0,117370.0,1.76800179]
[1753152335650,0.79459254,117380.0,117370.0,1.79095344]
[1753152336660,0.79459254,117380.0,117370.0,1.17627344]
[1753152336861,0.79459254,117380.0,117370.0,1.76999344]
[1753152337262,0.81851254,117380.0,117370.0,1.76999344]
[1753152337463,0.81851254,117380.0,117370.0,1.40919344]
[1753152338362,0.79459254,117380.0,117370.0,1.40919344]
[1753152340165,0.79459254,117380.0,117370.0,1.41685639]
[1753152342067,0.62429814,117380.0,117370.0,1.46276833]
[1753152342470,0.79459244,117380.0,117370.0,1.46276833]
[1753152342859,0.3369599,117380.0,117370.0,1.46276833]
[1753152343064,0.62429814,117380.0,117370.0,1.46276833]
[1753152343264,0.5072542,117380.0,117370.0,1.46276833]
[1753152343460,0.79459244,117380.0,117370.0,1.46276833]
[1753152343871,0.5072542,117380.0,117370.0,1.46276833]
[1753152344069,0.79459244,117380.0,117370.0,1.46276833]
[1753152344268,0.79459244,117380.0,117370.0,1.43215373]
[1753152344673,0.62429814,117380.0,117370.0,1.79295373]
[1753152345370,0.79459244,117380.0,117370.0,1.79295373]
[1753152346072,0.79459244,117380.0,117370.0,1.43095373]
[1753152346369,0.79459244,117380.0,117370.0,1.42015373]
[1753152346572,0.79459244,117380.0,117370.0,1.78095373]
[1753152347470,0.81799244,117380.0,117370.0,1.78095373]
[1753152349174,0.79459244,117380.0,117370.0,1.78095373]
[1753152352175,0.79459244,117380.0,117370.0,1.42015373]
[1753152356276,0.79459244,117380.0,117370.0,0.80843373]
[1753152356481,0.81799244,117380.0,117370.0,1.41703373]
[1753152356676,1.17879244,117380.0,117370.0,0.45843373]
[1753152356981,0.81799244,117380.0,117370.0,0.45843373]
[1753152360379,0.81799244,117380.0,117370.0,0.41256373]
[1753152362988,0.81799244,117380.0,117370.0,0.45884373]
[1753152363891,0.81799244,117380.0,117370.0,0.41256373]
[1753152364088,1.17879244,117380.0,117370.0,0.04611493]
[1753152364490,1.17879244,117380.0,117370.0,0.07678651]
[1753152364680,1.17879244,117380.0,117370.0,0.03087457]
[1753152364879,1.17879244,117380.0,117370.0,0.20118337]
[1753152365287,0.8914542,117380.0,117370.0,0.20118337]
[1753152365588,1.17879244,117380.0,117370.0,0.20118337]
[1753152365784,0.81799244,117380.0,117370.0,0.20118337]
[1753152365989,1.17879244,117380.0,117370.0,0.20118337]
[1753152366390,0.81799244,117380.0,117370.0,0.20118337]
[1753152366581,0.81799244,117380.0,117370.0,0.22377337]
[1753152366786,1.42439244,117380.0,117370.0,0.44234337]
[1753152367083,1.42439244,117380.0,117370.0,0.31319337]
[1753152367292,1.78519244,117380.0,117370.0,0.20118337]
[1753152369494,1.78519244,117380.0,117370.0,0.22377337]
[1753152369994,1.78519244,117380.0,117370.0,0.31319337]
[1753152370394,1.78519244,117380.0,117370.0,0.39606337]
[1753152371392,1.78519244,117380.0,117370.0,0.44234337]
[1753152371692,1.78519244,117380.0,117370.0,0.39606337]
[1753152372391,0.4100388,117370.0,117360.0,0.47936278]
[1753152372597,1.18817704,117370.0,117360.0,0.80973084]
[1753152373097,1.18817704,117370.0,117360.0,0.50973084]
[1753152373494,1.18817704,117370.0,117360.0,0.51173084]
[1753152373694,1.05817704,117370.0,117360.0,0.48173084]
[1753152373994,1.18817704,117370.0,117360.0,0.52173084]
[1753152378799,1.18817704,117370.0,117360.0,0.35140924]
[1753152380291,1.18817704,117370.0,117360.0,0.37438812]
[1753152381197,1.49137704,117370.0,117360.0,0.37438812]
[1753152381700,1.2040388,117370.0,117360.0,0.37438812]
[1753152381901,1.2040388,117370.0,117360.0,0.54471142]
[1753152382099,1.49137704,117370.0,117360.0,0.54471142]
[1753152382294,1.49137704,117370.0,117360.0,0.37438812]
[1753152384105,1.49137704,117370.0,117360.0,0.54471142]
[1753152384607,1.49137704,117370.0,117360.0,0.37439004]
[1753152385506,1.49137704,117370.0,117360.0,0.54471334]
[1753152385902,1.49137704,117370.0,117360.0,0.54371334]
[1753152386107,1.49437704,117370.0,117360.0,0.51973254]
[1753152389010,1.11013704,117370.0,117360.0,0.84973254]
[1753152390209,0.8227988,117370.0,117360.0,0.84973254]
[1753152390412,1.11013704,117370.0,117360.0,0.84973254]
[1753152391306,0.80697704,117370.0,117360.0,0.47973254]
[1753152391610,0.80697704,117370.0,117360.0,0.84973254]
[1753152392005,0.80697704,117370.0,117360.0,0.81973254]
[1753152392910,0.83027704,117370.0,117360.0,0.52973254]
[1753152393111,0.83027704,117370.0,117360.0,0.57564448]
[1753152393501,0.83027704,117370.0,117360.0,0.58564448]
[1753152396009,0.83027704,117370.0,117360.0,0.87564448]
[1753152396210,0.66907694,117370.0,117360.0,0.87564448]
[1753152396410,0.3357187,117370.0,117360.0,0.87564448]
[1753152397517,0.67135694,117370.0,117360.0,0.87564448]
[1753152398017,0.80242694,117370.0,117360.0,0.87564448]
[1753152398515,0.81393694,117370.0,117360.0,0.87564448]
[1753152399822,0.68286694,117370.0,117360.0,0.87564448]
[1753152400119,0.67135694,117370.0,117360.0,0.87564448]
[1753152400820,0.72328694,117370.0,117360.0,0.87564448]
[1753152403317,0.80242694,117370.0,117360.0,0.87564448]
[1753152406524,0.81393694,117370.0,117360.0,0.87564448]
[1753152409227,0.74228315,117370.0,117360.0,0.87564448]
[1753152410729,0.5265987,117370.0,117360.0,0.87564448]
[1753152411030,0.74228315,117370.0,117360.0,0.87564448]
[1753152411428,0.5265987,117370.0,117360.0,0.87564448]
[1753152411631,0.74228315,117370.0,117360.0,0.87564448]
[1753152413339,0.74228315,117370.0,117360.0,1.17868448]
[1753152414937,0.133,117370.0,117360.0,1.97085338]
[1753152415135,0.133,117370.0,117360.0,1.92494144]
[1753152416240,0.54983005,117390.0,117370.0,0.23407]
[1753152416539,0.54983005,117390.0,117380.0,1.5301966]
[1753152416540,0.12,117390.0,117380.0,1.5301966]
[1753152416739,0.12,117390.0,117380.0,1.8701966]
[1753152416933,0.08088,117400.0,117390.0,0.4043498]
[1753152417134,0.11,117400.0,117390.0,1.41548777]
[1753152417535,0.11,117400.0,117390.0,1.44615117]
[1753152418235,0.1109999,117400.0,117390.0,1.41548777]
[1753152418641,0.2812652,117400.0,117390.0,1.41548777]
[1753152418843,0.2812652,117400.0,117390.0,1.41748777]
[1753152419141,0.80373639,117400.0,117390.0,1.4408132]
[1753152419640,0.3621452,117400.0,117390.0,1.4408132]
[1753152420242,0.3621452,117400.0,117390.0,1.4101498]
[1753152420441,0.69767639,117400.0,117390.0,1.1378132]
[1753152420741,0.78152639,117400.0,117390.0,1.4407732]
[1753152421040,0.78152639,117400.0,117390.0,0.7978132]
[1753152421236,0.80373639,117400.0,117390.0,0.2590237]
[1753152421432,0.80373639,117400.0,117390.0,0.4315537]
[1753152421633,0.80373639,117400.0,117390.0,0.1286337]
[1753152421830,0.80373639,117400.0,117390.0,0.4315537]
[1753152422034,0.80373639,117400.0,117390.0,0.4086]
[1753152422242,0.80373639,117400.0,117390.0,0.43154544]
[1753152422441,0.80373639,117400.0,117390.0,0.60182524]
[1753152422644,0.80373639,117400.0,117390.0,0.43154544]
[1753152423144,0.80373639,117400.0,117390.0,0.73321524]
[1753152423442,0.5163852,117400.0,117390.0,0.73321524]
[1753152423643,0.80373639,117400.0,117390.0,0.73321524]
[1753152425443,0.80373639,117400.0,117390.0,0.73317524]
[1753152427841,0.80373639,117400.0,117390.0,1.09317524]
[1753152428247,0.80373639,117400.0,117390.0,0.73317524]
[1753152428639,0.80373639,117400.0,117390.0,1.11317524]
[1753152429248,0.80373639,117400.0,117390.0,0.73317524]
[1753152429448,0.4941752,117400.0,117390.0,0.43029524]
[1753152429641,0.4103252,117400.0,117390.0,1.33048643]
[1753152429845,0.4103252,117400.0,117390.0,1.04313524]
[1753152430142,0.3611453,117400.0,117390.0,1.40393524]
[1753152430348,0.2802653,117400.0,117390.0,1.1088132]
[1753152430542,0.2802653,117400.0,117390.0,1.4116132]
[1753152430543,0.2812652,117400.0,117390.0,1.4116132]
[1753152430851,0.1109999,117400.0,117390.0,1.4116132]
[1753152431244,0.11,117400.0,117390.0,1.4116132]
[1753152431751,0.2812653,117400.0,117390.0,1.4116132]
[1753152431947,0.3293453,117400.0,117390.0,1.4116132]
[1753152432150,0.2812653,117400.0,117390.0,1.4116132]
[1753152432449,0.2802654,117400.0,117390.0,1.69896439]
[1753152432842,0.2812653,117400.0,117390.0,1.69896439]
[1753152433242,0.2802654,117400.0,117390.0,1.69896439]
[1753152433442,0.2812653,117400.0,117390.0,1.69896439]
[1753152433841,0.2812653,117400.0,117390.0,1.4116132]
[1753152434044,0.2802654,117400.0,117390.0,1.4116132]
[1753152434353,0.2812653,117400.0,117390.0,1.4116132]
[1753152434652,0.2802654,117400.0,117390.0,1.4116132]
[1753152435152,0.3287253,117400.0,117390.0,1.4116132]
[1753152436050,0.69651649,117400.0,117390.0,1.4116132]
[1753152436250,0.4091653,117400.0,117390.0,1.4116132]
[1753152436452,0.3609853,117400.0,117390.0,1.4116132]
[1753152436752,0.1907199,117400.0,117390.0,1.4116132]
[1753152437347,0.3609853,117400.0,117390.0,1.4116132]
[1753152437553,0.1109999,117400.0,117390.0,1.69896439]
[1753152437753,0.11,117400.0,117390.0,1.69896439]
[1753152438752,0.11,117400.0,117390.0,1.4116132]
[1753152438753,0.1109999,117400.0,117390.0,1.4116132]
[1753152439352,0.1584599,117400.0,117390.0,1.4116132]
[1753152439655,0.3287253,117400.0,117390.0,1.4116132]
[1753152440554,0.1584599,117400.0,117390.0,1.4116132]
[1753152441056,0.3287253,117400.0,117390.0,1.4116132]